[Event "Titled Tuesday Blitz March 01 Late 2022"]
[White "Debray, Christopher"]
[Black "Kostiukov, Alexandr"]
[WhiteFideId "630810"]
[BlackFideId "14108100"]
[WhiteElo "2369"]
[BlackElo "2202"]
[Result "1-0"]
[Round "04"]
[TimeControl "180+1"]
[Date "2022.03.02"]
[WhiteClock "0:00:10"]
[BlackClock "0:00:06"]

1. d4 {[%clk 0:03:00]}  g6 {[%clk 0:03:00]} 2. e4 {[%clk 0:02:59]}  Bg7 {[%clk 0:03:00]} 3. Nc3 {[%clk 0:02:59]}  d6 {[%clk 0:03:00]} 4. Nf3 {[%clk 0:02:57]}  e5 {[%clk 0:03:00]} 5. dxe5 {[%clk 0:02:56]}  dxe5 {[%clk 0:03:01]} 6. Qxd8+ {[%clk 0:02:56]}  Kxd8 {[%clk 0:03:02]} 7. Bg5+ {[%clk 0:02:55]}  f6 {[%clk 0:03:02]} 8. O-O-O+ {[%clk 0:02:56]}  Nd7 {[%clk 0:03:02]} 9. Bh4 {[%clk 0:02:56]}  g5 {[%clk 0:03:01]} 10. Bg3 {[%clk 0:02:54]}  h5 {[%clk 0:03:02]} 11. h4 {[%clk 0:02:54]}  g4 {[%clk 0:03:02]} 12. Nd2 {[%clk 0:02:51]}  c6 {[%clk 0:03:01]} 13. Nc4 {[%clk 0:02:51]}  Ke7 {[%clk 0:02:55]} 14. Nd6 {[%clk 0:02:51]}  Nh6 {[%clk 0:02:49]} 15. Bc4 {[%clk 0:02:46]}  Nb6 {[%clk 0:02:40]} 16. Bb3 {[%clk 0:02:42]}  Rd8 {[%clk 0:02:39]} 17. Nxc8+ {[%clk 0:02:32]}  Raxc8 {[%clk 0:02:33]} 18. Rxd8 {[%clk 0:02:32]}  Rxd8 {[%clk 0:02:33]} 19. Rd1 {[%clk 0:02:32]}  Nd7 {[%clk 0:02:19]} 20. a4 {[%clk 0:02:13]}  Nf7 {[%clk 0:02:17]} 21. f3 {[%clk 0:02:08]}  gxf3 {[%clk 0:02:14]} 22. gxf3 {[%clk 0:02:08]}  Nd6 {[%clk 0:02:09]} 23. Bf2 {[%clk 0:02:00]}  b6 {[%clk 0:02:08]} 24. Rg1 {[%clk 0:01:57]}  Bh6+ {[%clk 0:02:03]} 25. Kb1 {[%clk 0:01:56]}  Nc5 {[%clk 0:01:38]} 26. Ba2 {[%clk 0:01:39]}  Ne6 {[%clk 0:01:23]} 27. Ne2 {[%clk 0:01:33]}  Nf7 {[%clk 0:01:03]} 28. a5 {[%clk 0:01:20]}  Rd2 {[%clk 0:01:02]} 29. Re1 {[%clk 0:01:20]}  Nd4 {[%clk 0:00:53]} 30. Bxd4 {[%clk 0:01:12]}  exd4 {[%clk 0:00:50]} 31. axb6 {[%clk 0:01:12]}  axb6 {[%clk 0:00:50]} 32. Bxf7 {[%clk 0:01:06]}  Kxf7 {[%clk 0:00:49]} 33. Ng3 {[%clk 0:01:06]}  Rf2 {[%clk 0:00:25]} 34. Nf5 {[%clk 0:00:57]}  Bf8 {[%clk 0:00:19]} 35. Nxd4 {[%clk 0:00:55]}  c5 {[%clk 0:00:18]} 36. Nf5 {[%clk 0:00:45]}  Rxf3 {[%clk 0:00:18]} 37. Rd1 {[%clk 0:00:40]}  Rf4 {[%clk 0:00:17]} 38. Rd7+ {[%clk 0:00:40]}  Ke6 {[%clk 0:00:17]} 39. Rb7 {[%clk 0:00:39]}  Rxe4 {[%clk 0:00:15]} 40. Ng3 {[%clk 0:00:38]}  Re1+ {[%clk 0:00:14]} 41. Ka2 {[%clk 0:00:38]}  Bd6 {[%clk 0:00:12]} 42. Rxb6 {[%clk 0:00:38]}  Kd5 {[%clk 0:00:13]} 43. Nxh5 {[%clk 0:00:35]}  f5 {[%clk 0:00:13]} 44. Nf6+ {[%clk 0:00:31]}  Ke6 {[%clk 0:00:13]} 45. Ne8 {[%clk 0:00:28]}  Kd7 {[%clk 0:00:14]} 46. Nxd6 {[%clk 0:00:26]}  Kc7 {[%clk 0:00:14]} 47. Ra6 {[%clk 0:00:25]}  Re6 {[%clk 0:00:14]} 48. Nb5+ {[%clk 0:00:24]}  Kd7 {[%clk 0:00:13]} 49. Rxe6 {[%clk 0:00:23]}  Kxe6 {[%clk 0:00:14]} 50. Nc3 {[%clk 0:00:20]}  f4 {[%clk 0:00:14]} 51. Kb3 {[%clk 0:00:18]}  f3 {[%clk 0:00:08]} 52. Nd1 {[%clk 0:00:17]}  Kf5 {[%clk 0:00:07]} 53. Kc4 {[%clk 0:00:16]}  Kg4 {[%clk 0:00:05]} 54. Kxc5 {[%clk 0:00:16]}  Kxh4 {[%clk 0:00:05]} 55. b4 {[%clk 0:00:16]}  Kg3 {[%clk 0:00:06]} 56. b5 {[%clk 0:00:14]}  Kg2 {[%clk 0:00:07]} 57. b6 {[%clk 0:00:13]}  Kf1 {[%clk 0:00:08]} 58. b7 {[%clk 0:00:12]}  Ke1 {[%clk 0:00:09]} 59. Ne3 {[%clk 0:00:11]}  Ke2 {[%clk 0:00:09]} 60. Ng4 {[%clk 0:00:11]}  Kd2 {[%clk 0:00:06]} 61. b8=Q {[%clk 0:00:10]} 1-0


[Site "https://www.chess.com"]

[Event "Titled Tuesday Blitz March 01 Late 2022"]
[White "Dias, Joao Batista"]
[Black "Zhurbinsky, David"]
[WhiteFideId "2108240"]
[BlackFideId "2072904"]
[WhiteElo "1898"]
[BlackElo "2525"]
[Result "0-1"]
[Round "04"]
[TimeControl "180+1"]
[Date "2022.03.02"]
[WhiteClock "0:02:27"]
[BlackClock "0:01:12"]

1. e4 {[%clk 0:03:00]}  e5 {[%clk 0:02:59]} 2. Nf3 {[%clk 0:03:00]}  Nc6 {[%clk 0:02:59]} 3. Bc4 {[%clk 0:02:59]}  Bc5 {[%clk 0:02:58]} 4. O-O {[%clk 0:02:58]}  d6 {[%clk 0:02:58]} 5. h3 {[%clk 0:02:58]}  Nf6 {[%clk 0:02:57]} 6. d3 {[%clk 0:02:56]}  O-O {[%clk 0:02:53]} 7. c3 {[%clk 0:02:56]}  a6 {[%clk 0:02:51]} 8. Bg5 {[%clk 0:02:56]}  h6 {[%clk 0:02:50]} 9. Bxf6 {[%clk 0:02:56]}  Qxf6 {[%clk 0:02:51]} 10. Nbd2 {[%clk 0:02:56]}  Be6 {[%clk 0:02:50]} 11. b3 {[%clk 0:02:53]}  Bd7 {[%clk 0:02:43]} 12. Bd5 {[%clk 0:02:52]}  Nd8 {[%clk 0:02:29]} 13. b4 {[%clk 0:02:51]}  Ba7 {[%clk 0:02:26]} 14. Nh2 {[%clk 0:02:50]}  c6 {[%clk 0:02:17]} 15. Bb3 {[%clk 0:02:49]}  Ne6 {[%clk 0:02:10]} 16. Qf3 {[%clk 0:02:49]}  Nf4 {[%clk 0:02:06]} 17. Ng4 {[%clk 0:02:47]}  Qg5 {[%clk 0:01:45]} 18. Nc4 {[%clk 0:02:43]}  h5 {[%clk 0:01:35]} 19. Nge3 {[%clk 0:02:37]}  Nxh3+ {[%clk 0:01:23]} 20. Kh2 {[%clk 0:02:32]}  Nf4 {[%clk 0:01:19]} 21. Nxd6 {[%clk 0:02:30]}  Qh4+ {[%clk 0:01:12]} 22. Kg1 {[%clk 0:02:28]}  Bg4 {[%clk 0:01:12]} 23. Qg3 {[%clk 0:02:27]}  Ne2# {[%clk 0:01:12]} 0-1


[Site "https://www.chess.com"]

[Event "Titled Tuesday Blitz March 01 Late 2022"]
[White "Elissalt Cardenas, Hector"]
[Black "Djokic, Mihailo"]
[WhiteFideId "3500632"]
[BlackFideId "976440"]
[WhiteElo "2159"]
[BlackElo "2008"]
[Result "0-1"]
[Round "04"]
[TimeControl "180+1"]
[Date "2022.03.02"]
[WhiteClock "0:00:09"]
[BlackClock "0:00:18"]

1. d4 {[%clk 0:03:00]}  Nf6 {[%clk 0:02:28]} 2. c4 {[%clk 0:02:53]}  d6 {[%clk 0:02:26]} 3. Nf3 {[%clk 0:02:49]}  g6 {[%clk 0:02:27]} 4. Nc3 {[%clk 0:02:44]}  Bg7 {[%clk 0:02:27]} 5. Bg5 {[%clk 0:02:39]}  O-O {[%clk 0:02:28]} 6. Qd2 {[%clk 0:02:33]}  c5 {[%clk 0:02:27]} 7. d5 {[%clk 0:02:22]}  Bf5 {[%clk 0:02:26]} 8. Bh6 {[%clk 0:02:11]}  Bxh6 {[%clk 0:02:15]} 9. Qxh6 {[%clk 0:02:09]}  Qb6 {[%clk 0:02:16]} 10. Qd2 {[%clk 0:01:59]}  Nbd7 {[%clk 0:02:12]} 11. e3 {[%clk 0:01:37]}  Ne4 {[%clk 0:01:39]} 12. Nxe4 {[%clk 0:01:35]}  Bxe4 {[%clk 0:01:40]} 13. Be2 {[%clk 0:01:30]}  Nf6 {[%clk 0:01:33]} 14. O-O {[%clk 0:01:24]}  Rfd8 {[%clk 0:01:31]} 15. Ne1 {[%clk 0:01:13]}  Bf5 {[%clk 0:01:28]} 16. f3 {[%clk 0:01:12]}  a6 {[%clk 0:01:23]} 17. e4 {[%clk 0:01:06]}  Bd7 {[%clk 0:01:22]} 18. Nd3 {[%clk 0:01:02]}  e6 {[%clk 0:01:21]} 19. b3 {[%clk 0:00:39]}  exd5 {[%clk 0:01:19]} 20. cxd5 {[%clk 0:00:39]}  Re8 {[%clk 0:01:15]} 21. Nb2 {[%clk 0:00:37]}  Bb5 {[%clk 0:01:13]} 22. Bc4 {[%clk 0:00:34]}  Qc7 {[%clk 0:01:07]} 23. a4 {[%clk 0:00:33]}  Bxc4 {[%clk 0:01:00]} 24. Nxc4 {[%clk 0:00:33]}  b5 {[%clk 0:01:00]} 25. Qa5 {[%clk 0:00:29]}  Qe7 {[%clk 0:00:50]} 26. axb5 {[%clk 0:00:23]}  axb5 {[%clk 0:00:50]} 27. Qxa8 {[%clk 0:00:23]}  Rxa8 {[%clk 0:00:51]} 28. Rxa8+ {[%clk 0:00:23]}  Kg7 {[%clk 0:00:52]} 29. Na5 {[%clk 0:00:23]}  Qe5 {[%clk 0:00:49]} 30. Nc6 {[%clk 0:00:22]}  Qc3 {[%clk 0:00:48]} 31. Rfa1 {[%clk 0:00:20]}  Qxb3 {[%clk 0:00:46]} 32. R1a7 {[%clk 0:00:19]}  Qe3+ {[%clk 0:00:45]} 33. Kf1 {[%clk 0:00:19]}  c4 {[%clk 0:00:41]} 34. Nd8 {[%clk 0:00:17]}  Qd3+ {[%clk 0:00:35]} 35. Kg1 {[%clk 0:00:14]}  c3 {[%clk 0:00:33]} 36. Nxf7 {[%clk 0:00:13]}  Qd4+ {[%clk 0:00:25]} 37. Kf1 {[%clk 0:00:12]}  c2 {[%clk 0:00:20]} 38. Ne5+ {[%clk 0:00:09]}  Kh6 {[%clk 0:00:19]} 39. Nf7+ {[%clk 0:00:09]}  Kh5 {[%clk 0:00:18]} 0-1


[Site "https://www.chess.com"]

[Event "Titled Tuesday Blitz March 01 Late 2022"]
[White "Erdogdu, Mert"]
[Black "Sarkar, Justin"]
[WhiteFideId "6301495"]
[BlackFideId "2010011"]
[WhiteElo "2485"]
[BlackElo "2038"]
[Result "1-0"]
[Round "04"]
[TimeControl "180+1"]
[Date "2022.03.02"]
[WhiteClock "0:00:49"]
[BlackClock "0:00:01"]

1. e4 {[%clk 0:03:00]}  e5 {[%clk 0:02:59]} 2. Nf3 {[%clk 0:03:00]}  Nc6 {[%clk 0:02:58]} 3. Bc4 {[%clk 0:03:00]}  Nf6 {[%clk 0:02:57]} 4. d3 {[%clk 0:03:00]}  Bc5 {[%clk 0:02:54]} 5. O-O {[%clk 0:03:00]}  h6 {[%clk 0:02:52]} 6. a4 {[%clk 0:02:59]}  d6 {[%clk 0:02:46]} 7. c3 {[%clk 0:02:59]}  a5 {[%clk 0:02:39]} 8. Nbd2 {[%clk 0:02:55]}  O-O {[%clk 0:02:36]} 9. h3 {[%clk 0:02:54]}  Ba7 {[%clk 0:02:29]} 10. Re1 {[%clk 0:02:53]}  Ne7 {[%clk 0:02:19]} 11. Nf1 {[%clk 0:02:52]}  Ng6 {[%clk 0:02:13]} 12. Ng3 {[%clk 0:02:52]}  c6 {[%clk 0:02:03]} 13. d4 {[%clk 0:02:50]}  exd4 {[%clk 0:01:57]} 14. Nxd4 {[%clk 0:02:46]}  d5 {[%clk 0:01:51]} 15. exd5 {[%clk 0:02:46]}  Nxd5 {[%clk 0:01:51]} 16. Nh5 {[%clk 0:02:28]}  Qh4 {[%clk 0:01:32]} 17. Bxd5 {[%clk 0:02:05]}  cxd5 {[%clk 0:01:28]} 18. Be3 {[%clk 0:01:58]}  Bd7 {[%clk 0:01:18]} 19. Nc2 {[%clk 0:01:50]}  Bxa4 {[%clk 0:01:01]} 20. Bxa7 {[%clk 0:01:42]}  Bxc2 {[%clk 0:00:53]} 21. Qxc2 {[%clk 0:01:42]}  Rxa7 {[%clk 0:00:46]} 22. Ng3 {[%clk 0:01:35]}  b5 {[%clk 0:00:40]} 23. Qf5 {[%clk 0:01:23]}  Qc4 {[%clk 0:00:19]} 24. Rad1 {[%clk 0:01:21]}  b4 {[%clk 0:00:09]} 25. cxb4 {[%clk 0:01:11]}  Qxb4 {[%clk 0:00:09]} 26. Re2 {[%clk 0:01:11]}  a4 {[%clk 0:00:07]} 27. Qxd5 {[%clk 0:01:02]}  Nf4 {[%clk 0:00:04]} 28. Qf3 {[%clk 0:00:53]}  Nxe2+ {[%clk 0:00:05]} 29. Qxe2 {[%clk 0:00:54]}  a3 {[%clk 0:00:04]} 30. bxa3 {[%clk 0:00:54]}  Qxa3 {[%clk 0:00:05]} 31. Nf5 {[%clk 0:00:53]}  Qc5 {[%clk 0:00:04]} 32. Qg4 {[%clk 0:00:52]}  Qe5 {[%clk 0:00:03]} 33. Nxh6+ {[%clk 0:00:51]}  Kh7 {[%clk 0:00:03]} 34. Nf5 {[%clk 0:00:50]}  Qf6 {[%clk 0:00:02]} 35. Rd6 {[%clk 0:00:49]}  Ra1+ {[%clk 0:00:02]} 36. Kh2 {[%clk 0:00:49]}  Qe5+ {[%clk 0:00:01]} 37. f4 {[%clk 0:00:49]} 1-0


[Site "https://www.chess.com"]

[Event "Titled Tuesday Blitz March 01 Late 2022"]
[White "Gareyev, Timur"]
[Black "Niemann, Hans Moke"]
[WhiteFideId "14200937"]
[BlackFideId "2093596"]
[WhiteElo "2586"]
[BlackElo "2636"]
[Result "1-0"]
[Round "04"]
[TimeControl "180+1"]
[Date "2022.03.01"]
[WhiteClock "0:00:16"]
[BlackClock "0:00:02"]

1. d4 {[%clk 0:02:35]}  g6 {[%clk 0:02:59]} 2. e4 {[%clk 0:02:34]}  Bg7 {[%clk 0:02:59]} 3. h4 {[%clk 0:02:34]}  d5 {[%clk 0:02:57]} 4. e5 {[%clk 0:02:32]}  h5 {[%clk 0:02:54]} 5. c3 {[%clk 0:02:20]}  Nh6 {[%clk 0:02:54]} 6. Bd3 {[%clk 0:02:17]}  c5 {[%clk 0:02:51]} 7. Ne2 {[%clk 0:02:14]}  Nc6 {[%clk 0:02:51]} 8. O-O {[%clk 0:02:12]}  Nf5 {[%clk 0:02:45]} 9. Bg5 {[%clk 0:01:51]}  cxd4 {[%clk 0:02:39]} 10. cxd4 {[%clk 0:01:47]}  O-O {[%clk 0:02:33]} 11. Nbc3 {[%clk 0:01:45]}  Be6 {[%clk 0:02:20]} 12. Bxf5 {[%clk 0:01:27]}  Bxf5 {[%clk 0:02:17]} 13. Qb3 {[%clk 0:01:27]}  Bd3 {[%clk 0:02:07]} 14. Rad1 {[%clk 0:01:25]}  Bxe2 {[%clk 0:01:49]} 15. Nxe2 {[%clk 0:01:24]}  Qd7 {[%clk 0:01:50]} 16. Nf4 {[%clk 0:01:21]}  e6 {[%clk 0:01:43]} 17. g4 {[%clk 0:01:20]}  hxg4 {[%clk 0:01:37]} 18. Qg3 {[%clk 0:01:14]}  Nxd4 {[%clk 0:01:04]} 19. Rxd4 {[%clk 0:01:12]}  Bxe5 {[%clk 0:01:04]} 20. Rdd1 {[%clk 0:00:55]}  f6 {[%clk 0:00:44]} 21. Bh6 {[%clk 0:00:53]}  g5 {[%clk 0:00:41]} 22. hxg5 {[%clk 0:00:34]}  fxg5 {[%clk 0:00:34]} 23. Bxg5 {[%clk 0:00:29]}  Rf5 {[%clk 0:00:11]} 24. Qxg4 {[%clk 0:00:29]}  Bxf4 {[%clk 0:00:06]} 25. Bxf4+ {[%clk 0:00:28]}  Kf7 {[%clk 0:00:07]} 26. Bg3 {[%clk 0:00:25]}  Rg8 {[%clk 0:00:07]} 27. Qh3 {[%clk 0:00:24]}  Qb5 {[%clk 0:00:05]} 28. Rfe1 {[%clk 0:00:23]}  Qxb2 {[%clk 0:00:04]} 29. Rb1 {[%clk 0:00:23]}  Qxf2+ {[%clk 0:00:04]} 30. Kh1 {[%clk 0:00:23]}  Qf3+ {[%clk 0:00:01]} 31. Kh2 {[%clk 0:00:20]}  Rh5 {[%clk 0:00:02]} 32. Rxb7+ {[%clk 0:00:16]} 1-0


[Site "https://www.chess.com"]

[Event "Titled Tuesday Blitz March 01 Late 2022"]
[White "Gerbelli Neto, Eduardo"]
[Black "Mikhalsky, Vladimir"]
[WhiteFideId "2103281"]
[BlackFideId "14144352"]
[WhiteElo "2178"]
[BlackElo "2248"]
[Result "0-1"]
[Round "04"]
[TimeControl "180+1"]
[Date "2022.03.02"]
[WhiteClock "0:00:04"]
[BlackClock "0:00:17"]

1. e4 {[%clk 0:02:56]}  g6 {[%clk 0:02:58]} 2. Nc3 {[%clk 0:02:55]}  c5 {[%clk 0:02:58]} 3. f4 {[%clk 0:02:55]}  Nc6 {[%clk 0:02:57]} 4. Nf3 {[%clk 0:02:56]}  Bg7 {[%clk 0:02:56]} 5. Bc4 {[%clk 0:02:57]}  e6 {[%clk 0:02:56]} 6. f5 {[%clk 0:02:58]}  gxf5 {[%clk 0:02:55]} 7. d3 {[%clk 0:02:57]}  h6 {[%clk 0:02:53]} 8. O-O {[%clk 0:02:57]}  Nge7 {[%clk 0:02:52]} 9. Qe1 {[%clk 0:02:57]}  a6 {[%clk 0:02:45]} 10. Qh4 {[%clk 0:02:49]}  b5 {[%clk 0:02:41]} 11. Bb3 {[%clk 0:02:48]}  Bb7 {[%clk 0:02:38]} 12. Be3 {[%clk 0:02:19]}  Nd4 {[%clk 0:02:36]} 13. Bxd4 {[%clk 0:02:06]}  cxd4 {[%clk 0:02:30]} 14. Ne2 {[%clk 0:02:05]}  Qc7 {[%clk 0:02:18]} 15. Kh1 {[%clk 0:01:43]}  Ng6 {[%clk 0:02:14]} 16. Qf2 {[%clk 0:01:33]}  fxe4 {[%clk 0:02:11]} 17. Nfxd4 {[%clk 0:01:27]}  O-O {[%clk 0:01:35]} 18. dxe4 {[%clk 0:01:24]}  Bxe4 {[%clk 0:01:34]} 19. c3 {[%clk 0:01:18]}  Be5 {[%clk 0:01:25]} 20. Ng3 {[%clk 0:01:13]}  Bxg3 {[%clk 0:01:23]} 21. hxg3 {[%clk 0:01:13]}  d5 {[%clk 0:01:20]} 22. Rae1 {[%clk 0:00:56]}  Qe5 {[%clk 0:01:18]} 23. Nf3 {[%clk 0:00:41]}  Qh5+ {[%clk 0:01:14]} 24. Kg1 {[%clk 0:00:39]}  f5 {[%clk 0:01:03]} 25. Nd4 {[%clk 0:00:36]}  Ne5 {[%clk 0:00:55]} 26. g4 {[%clk 0:00:20]}  Nxg4 {[%clk 0:00:50]} 27. Qg3 {[%clk 0:00:21]}  Qg6 {[%clk 0:00:49]} 28. Bd1 {[%clk 0:00:09]}  Kh7 {[%clk 0:00:42]} 29. Bf3 {[%clk 0:00:09]}  Rg8 {[%clk 0:00:22]} 30. Bxg4 {[%clk 0:00:10]}  Qxg4 {[%clk 0:00:20]} 31. Qxg4 {[%clk 0:00:10]}  Rxg4 {[%clk 0:00:20]} 32. Rf2 {[%clk 0:00:10]}  Rag8 {[%clk 0:00:18]} 33. Ree2 {[%clk 0:00:10]}  R8g6 {[%clk 0:00:18]} 34. b3 {[%clk 0:00:07]}  h5 {[%clk 0:00:19]} 35. Kh2 {[%clk 0:00:07]}  h4 {[%clk 0:00:19]} 36. Kh3 {[%clk 0:00:06]}  Rg3+ {[%clk 0:00:18]} 37. Kxh4 {[%clk 0:00:04]}  Rxc3 {[%clk 0:00:17]} 0-1


[Site "https://www.chess.com"]

[Event "Titled Tuesday Blitz March 01 Late 2022"]
[White "Golubovskis, Maksims"]
[Black "Garriga Cazorla, Pere"]
[WhiteFideId "11608528"]
[BlackFideId "32011601"]
[WhiteElo "2404"]
[BlackElo "2698"]
[Result "0-1"]
[Round "04"]
[TimeControl "180+1"]
[Date "2022.03.02"]
[WhiteClock "0:00:04"]
[BlackClock "0:00:41"]

1. e4 {[%clk 0:03:00]}  c5 {[%clk 0:02:59]} 2. Nf3 {[%clk 0:03:00]}  d6 {[%clk 0:02:56]} 3. d4 {[%clk 0:03:00]}  cxd4 {[%clk 0:02:57]} 4. Nxd4 {[%clk 0:03:01]}  Nf6 {[%clk 0:02:57]} 5. f3 {[%clk 0:03:02]}  e5 {[%clk 0:02:56]} 6. Nb3 {[%clk 0:03:02]}  a5 {[%clk 0:02:57]} 7. Be3 {[%clk 0:02:54]}  a4 {[%clk 0:02:53]} 8. Nc1 {[%clk 0:02:54]}  d5 {[%clk 0:02:46]} 9. Bg5 {[%clk 0:02:41]}  d4 {[%clk 0:02:42]} 10. c3 {[%clk 0:02:40]}  Nc6 {[%clk 0:02:38]} 11. Bb5 {[%clk 0:02:39]}  Qb6 {[%clk 0:02:23]} 12. Bxc6+ {[%clk 0:02:29]}  bxc6 {[%clk 0:02:21]} 13. Nd3 {[%clk 0:02:15]}  Be7 {[%clk 0:02:01]} 14. cxd4 {[%clk 0:02:06]}  exd4 {[%clk 0:01:58]} 15. O-O {[%clk 0:01:59]}  O-O {[%clk 0:01:57]} 16. Nd2 {[%clk 0:01:50]}  Ba6 {[%clk 0:01:56]} 17. Qc2 {[%clk 0:01:49]}  Rfe8 {[%clk 0:01:49]} 18. Nc4 {[%clk 0:01:39]}  Qb5 {[%clk 0:01:36]} 19. Rac1 {[%clk 0:01:32]}  Qxg5 {[%clk 0:01:35]} 20. f4 {[%clk 0:01:15]}  Qb5 {[%clk 0:01:19]} 21. Nde5 {[%clk 0:01:16]}  Bf8 {[%clk 0:01:15]} 22. g4 {[%clk 0:01:13]}  c5 {[%clk 0:01:15]} 23. g5 {[%clk 0:01:12]}  Nd7 {[%clk 0:01:16]} 24. g6 {[%clk 0:00:58]}  hxg6 {[%clk 0:01:15]} 25. Nxd7 {[%clk 0:00:40]}  Qxd7 {[%clk 0:01:16]} 26. f5 {[%clk 0:00:41]}  gxf5 {[%clk 0:01:10]} 27. Rxf5 {[%clk 0:00:37]}  Re6 {[%clk 0:01:09]} 28. Rcf1 {[%clk 0:00:29]}  Rae8 {[%clk 0:01:01]} 29. Rxf7 {[%clk 0:00:25]}  Qxf7 {[%clk 0:01:00]} 30. Rxf7 {[%clk 0:00:26]}  Kxf7 {[%clk 0:01:01]} 31. e5 {[%clk 0:00:24]}  Bb5 {[%clk 0:00:53]} 32. b3 {[%clk 0:00:17]}  axb3 {[%clk 0:00:50]} 33. Qxb3 {[%clk 0:00:18]}  Bc6 {[%clk 0:00:48]} 34. Na5 {[%clk 0:00:10]}  Be4 {[%clk 0:00:44]} 35. Nc4 {[%clk 0:00:04]}  Bd5 {[%clk 0:00:41]} 36. Nd6+ {[%clk 0:00:04]}  Rxd6 {[%clk 0:00:41]} 0-1


[Site "https://www.chess.com"]

[Event "Titled Tuesday Blitz March 01 Late 2022"]
[White "Dronavalli, Harika"]
[Black "Caruana, Fabiano"]
[WhiteFideId "5015197"]
[BlackFideId "2020009"]
[WhiteElo "2382"]
[BlackElo "2744"]
[Result "0-1"]
[Round "04"]
[TimeControl "180+1"]
[Date "2022.03.01"]
[WhiteClock "0:00:03"]
[BlackClock "0:01:01"]

1. d4 {[%clk 0:03:00]}  Nf6 {[%clk 0:02:59]} 2. c4 {[%clk 0:02:59]}  e6 {[%clk 0:03:00]} 3. g3 {[%clk 0:02:59]}  Bb4+ {[%clk 0:02:58]} 4. Bd2 {[%clk 0:02:57]}  Qe7 {[%clk 0:02:59]} 5. Bg2 {[%clk 0:02:55]}  O-O {[%clk 0:02:54]} 6. Nc3 {[%clk 0:02:50]}  Nc6 {[%clk 0:02:45]} 7. a3 {[%clk 0:02:45]}  Bxc3 {[%clk 0:02:45]} 8. Bxc3 {[%clk 0:02:45]}  d6 {[%clk 0:02:44]} 9. e3 {[%clk 0:02:40]}  e5 {[%clk 0:02:43]} 10. Ne2 {[%clk 0:02:39]}  Bf5 {[%clk 0:02:34]} 11. O-O {[%clk 0:02:28]}  a5 {[%clk 0:02:29]} 12. d5 {[%clk 0:02:25]}  Nb8 {[%clk 0:02:27]} 13. b4 {[%clk 0:02:21]}  axb4 {[%clk 0:02:25]} 14. axb4 {[%clk 0:02:21]}  Rxa1 {[%clk 0:02:25]} 15. Bxa1 {[%clk 0:02:21]}  Nbd7 {[%clk 0:02:25]} 16. f3 {[%clk 0:02:10]}  Nb6 {[%clk 0:02:12]} 17. e4 {[%clk 0:02:05]}  Bd7 {[%clk 0:02:12]} 18. Qc2 {[%clk 0:01:54]}  Ra8 {[%clk 0:02:11]} 19. Rc1 {[%clk 0:01:35]}  h5 {[%clk 0:01:54]} 20. Bf1 {[%clk 0:01:31]}  h4 {[%clk 0:01:52]} 21. c5 {[%clk 0:01:28]}  Na4 {[%clk 0:01:51]} 22. Kf2 {[%clk 0:01:00]}  hxg3+ {[%clk 0:01:37]} 23. hxg3 {[%clk 0:00:59]}  Nh5 {[%clk 0:01:38]} 24. Bg2 {[%clk 0:00:37]}  Bb5 {[%clk 0:01:31]} 25. Nc3 {[%clk 0:00:36]}  Nxc3 {[%clk 0:01:30]} 26. Qxc3 {[%clk 0:00:32]}  Qg5 {[%clk 0:01:20]} 27. g4 {[%clk 0:00:31]}  Nf4 {[%clk 0:01:15]} 28. Bf1 {[%clk 0:00:10]}  Qh4+ {[%clk 0:01:14]} 29. Ke3 {[%clk 0:00:08]}  Ra2 {[%clk 0:01:11]} 30. Qe1 {[%clk 0:00:05]}  Bxf1 {[%clk 0:01:03]} 31. Qxh4 {[%clk 0:00:03]}  Ng2# {[%clk 0:01:01]} 0-1


[Site "https://www.chess.com"]

[Event "Titled Tuesday Blitz March 01 Late 2022"]
[White "Hoffmann, Asa"]
[Black "Suder, Jakub"]
[WhiteFideId "2001470"]
[BlackFideId "1195310"]
[WhiteElo "2117"]
[BlackElo "2058"]
[Result "0-1"]
[Round "04"]
[TimeControl "180+1"]
[Date "2022.03.02"]
[WhiteClock "0:00:24"]
[BlackClock "0:00:26"]

1. d4 {[%clk 0:02:55]}  d5 {[%clk 0:02:59]} 2. Bg5 {[%clk 0:02:54]}  c6 {[%clk 0:02:58]} 3. e3 {[%clk 0:02:54]}  h6 {[%clk 0:02:58]} 4. Bh4 {[%clk 0:02:54]}  Qb6 {[%clk 0:02:59]} 5. b3 {[%clk 0:02:53]}  e5 {[%clk 0:02:58]} 6. Nf3 {[%clk 0:02:52]}  Nd7 {[%clk 0:02:54]} 7. Be2 {[%clk 0:02:50]}  exd4 {[%clk 0:02:52]} 8. exd4 {[%clk 0:02:50]}  Bd6 {[%clk 0:02:51]} 9. O-O {[%clk 0:02:47]}  Ngf6 {[%clk 0:02:52]} 10. Nbd2 {[%clk 0:02:45]}  O-O {[%clk 0:02:51]} 11. c4 {[%clk 0:02:45]}  Qc7 {[%clk 0:02:50]} 12. Rc1 {[%clk 0:02:38]}  Re8 {[%clk 0:02:49]} 13. Re1 {[%clk 0:02:30]}  Qa5 {[%clk 0:02:39]} 14. a4 {[%clk 0:02:27]}  Bb4 {[%clk 0:02:37]} 15. Bd3 {[%clk 0:02:18]}  Rxe1+ {[%clk 0:02:30]} 16. Qxe1 {[%clk 0:02:17]}  Ne4 {[%clk 0:02:23]} 17. Rc2 {[%clk 0:01:49]}  Nxd2 {[%clk 0:02:18]} 18. Nxd2 {[%clk 0:01:45]}  Nf8 {[%clk 0:02:16]} 19. Qe2 {[%clk 0:01:41]}  Be6 {[%clk 0:02:12]} 20. Nf3 {[%clk 0:01:36]}  dxc4 {[%clk 0:02:10]} 21. Bxc4 {[%clk 0:01:34]}  Re8 {[%clk 0:02:05]} 22. h3 {[%clk 0:01:32]}  Ng6 {[%clk 0:01:57]} 23. Bg3 {[%clk 0:01:32]}  Qd8 {[%clk 0:01:51]} 24. Bxe6 {[%clk 0:01:28]}  Rxe6 {[%clk 0:01:51]} 25. Qc4 {[%clk 0:01:28]}  Bd6 {[%clk 0:01:40]} 26. Bxd6 {[%clk 0:01:24]}  Rxd6 {[%clk 0:01:39]} 27. Re2 {[%clk 0:01:23]}  Nf4 {[%clk 0:01:38]} 28. Re4 {[%clk 0:01:23]}  Ne6 {[%clk 0:01:35]} 29. b4 {[%clk 0:01:18]}  a6 {[%clk 0:01:29]} 30. b5 {[%clk 0:01:17]}  cxb5 {[%clk 0:01:28]} 31. axb5 {[%clk 0:01:17]}  axb5 {[%clk 0:01:28]} 32. Qxb5 {[%clk 0:01:17]}  Qd7 {[%clk 0:01:25]} 33. Qb4 {[%clk 0:00:59]}  Qc7 {[%clk 0:01:18]} 34. g3 {[%clk 0:00:44]}  Qc6 {[%clk 0:01:09]} 35. Re3 {[%clk 0:00:43]}  Qd5 {[%clk 0:01:03]} 36. Rd3 {[%clk 0:00:38]}  b5 {[%clk 0:00:58]} 37. Qb3 {[%clk 0:00:37]}  Kf8 {[%clk 0:00:53]} 38. Qxd5 {[%clk 0:00:35]}  Rxd5 {[%clk 0:00:54]} 39. Kf1 {[%clk 0:00:35]}  g5 {[%clk 0:00:47]} 40. Ke2 {[%clk 0:00:35]}  h5 {[%clk 0:00:48]} 41. Ke3 {[%clk 0:00:34]}  Ke7 {[%clk 0:00:47]} 42. Rc3 {[%clk 0:00:31]}  Kd6 {[%clk 0:00:42]} 43. Rb3 {[%clk 0:00:29]}  f6 {[%clk 0:00:38]} 44. Ra3 {[%clk 0:00:25]}  Nc7 {[%clk 0:00:27]} 45. Ra6+ {[%clk 0:00:24]}  Nxa6 {[%clk 0:00:26]} 0-1


[Site "https://www.chess.com"]